fUSD/lending_fUSD_20260122
["ID","MTS","AMOUNT","RATE_DAILY","PERIOD"]
[403031743,1769091933235,187.43,0.00013749,2]
[403031744,1769091933673,-16.80073493,0.00015358,2]
[403031745,1769091933699,-182.59685887,0.00015436,2]
[403031746,1769091936306,-244.2133375,0.00015436,2]
[403031747,1769091937793,-166.4942519,0.00015436,2]
[403031748,1769091940976,-25.75763006,0.00015436,2]
[403031749,1769091941001,-187.86435576,0.00015437,2]
[403031750,1769091942479,-340.83340628,0.00015437,2]
[403031751,1769091942501,-87.07418307,0.00015437,2]
[403031752,1769091944500,-333.63861146,0.00015437,2]
[403031753,1769091945919,-79.28720547,0.00015437,2]
[403031754,1769091945942,-274.08438925,0.00015437,2]
[403031755,1769091949584,-225.91561075,0.00015437,2]
[403031756,1769091949608,-49.22113166,0.00015437,2]
[403031758,1769091965233,-176.79782439,0.00015338,2]
[403031759,1769091968487,-250.76580485,0.00015338,2]
[403031760,1769091971331,-297.02273188,0.00015338,2]
[403031761,1769091973607,-180.14659574,0.00015338,2]
[403031762,1769091975629,-297.20141665,0.00015338,2]
[403031763,1769091977873,-316.13698264,0.00015338,2]
[403031764,1769091980348,-285.04979101,0.00015338,2]
[403031765,1769091982419,-253.87860884,0.00015338,2]
[403031766,1769091984301,-2076.13991278,0.00015338,2]
[403031767,1769091984340,-450.77886834,0.00015437,2]
[403031768,1769091984374,-564.90040341,0.00015437,2]
[403031769,1769091984408,-500.0,0.00015437,2]
[403031770,1769091984442,-500.0,0.00015437,2]
[403031771,1769091984474,-179.37709203,0.00015437,2]
[403031772,1769091984506,-500.0,0.00015437,2]
[403031773,1769091984686,-484.81798632,0.00015437,2]
[403031774,1769091984718,-500.0,0.00015437,2]
[403031775,1769091984755,-500.0,0.00015437,2]
[403031776,1769091984790,-500.0,0.00015437,2]
[403031777,1769091984821,-317.53883731,0.00015437,2]
[403031778,1769091985272,-432.12825019,0.00015438,2]
[403031779,1769091986960,500.0,0.00015437,2]
[403031780,1769091987003,500.0,0.00015437,2]
[403031781,1769091987048,500.0,0.00015437,2]
[403031782,1769091987090,500.0,0.00015437,2]
[403031783,1769091987135,500.0,0.00015437,2]
[403031784,1769091987180,500.0,0.00015437,2]
[403031785,1769091987218,500.0,0.00015437,2]
[403031786,1769091987266,500.0,0.00015437,2]
[403031787,1769091987304,500.0,0.00015437,2]
[403031788,1769091987349,500.0,0.00015437,2]
[403031789,1769091987445,395.29635274,0.00015437,2]
[403031790,1769091987473,104.70364726,0.00015437,2]
[403031791,1769091987536,500.0,0.00015437,2]
[403031792,1769091987577,500.0,0.00015437,2]
[403031793,1769091987630,500.0,0.00015437,2]
[403031794,1769091987675,500.0,0.00015437,2]
[403031795,1769091987712,500.0,0.00015437,2]
[403031796,1769091987755,500.0,0.00015437,2]
[403031797,1769091987884,500.0,0.00015437,2]
[403031798,1769091987921,500.0,0.00015437,2]
[403031799,1769091987959,500.0,0.00015437,2]
[403031800,1769091988002,500.0,0.00015437,2]
[403031801,1769091988039,500.0,0.00015437,2]
[403031802,1769091988080,500.0,0.00015437,2]
[403031803,1769091988121,500.0,0.00015437,2]
[403031804,1769091988165,500.0,0.00015437,2]
[403031805,1769091988203,500.0,0.00015437,2]
[403031806,1769091988242,500.0,0.00015437,2]
[403031807,1769091988312,500.0,0.00015437,2]
[403031808,1769091988358,500.0,0.00015437,2]
[403031809,1769091988392,-313.32888976,0.00015438,2]
[403031810,1769091988434,500.0,0.00015437,2]
[403031811,1769091988472,395.30635274,0.00015437,2]
[403031812,1769091988502,104.69364726,0.00015437,2]
[403031813,1769091988557,500.0,0.00015437,2]
[403031814,1769091988605,565.22743454,0.00015437,2]
[403031815,1769091988651,500.0,0.00015437,2]
[403031816,1769091988690,500.0,0.00015437,2]
[403031817,1769091988734,500.0,0.00015437,2]
[403031818,1769091988785,500.0,0.00015437,2]
[403031819,1769091988836,500.0,0.00015437,2]
[403031820,1769091988881,500.0,0.00015437,2]
[403031821,1769091988926,500.0,0.00015437,2]
[403031822,1769091988968,500.0,0.00015437,2]
[403031823,1769091989028,500.0,0.00015437,2]
[403031824,1769091989089,500.0,0.00015437,2]
[403031825,1769091989896,-405.0,0.00015438,2]
[403031826,1769091991411,-199.92045607,0.00015438,2]
[403031827,1769091992957,-255.88840929,0.00015438,2]
[403031828,1769091993761,315.78254537,0.00015437,2]
[403031829,1769091995392,-473.66195779,0.00015438,2]
[403031830,1769091997092,529.0755,0.00015338,2]
[403031831,1769091998021,-187.04670374,0.00015438,2]
[403031832,1769091999304,2985.23087283,0.00015338,2]
[403031833,1769091999333,9887.84440523,0.00015338,2]
[403031834,1769092000122,-899.12809329,0.00015438,2]
[403031835,1769092000250,500.0,0.00015437,2]
[403031836,1769092000289,500.0,0.00015437,2]
[403031837,1769092000328,500.0,0.00015437,2]
[403031838,1769092000372,500.0,0.00015437,2]
[403031839,1769092000412,500.0,0.00015437,2]
[403031840,1769092000458,500.0,0.00015437,2]
[403031841,1769092000499,500.0,0.00015437,2]
[403031842,1769092000584,500.0,0.00015437,2]
[403031843,1769092000705,500.0,0.00015437,2]
[403031844,1769092000752,500.0,0.00015437,2]
[403031845,1769092000796,500.0,0.00015437,2]
[403031846,1769092000836,500.0,0.00015437,2]
[403031847,1769092000878,500.0,0.00015437,2]
[403031848,1769092000926,500.0,0.00015437,2]
[403031849,1769092000980,500.0,0.00015437,2]
[403031850,1769092002354,-300.0,0.00015438,2]
[403031851,1769092005183,-268.1609877,0.00015438,2]
[403031852,1769092008552,500.0,0.00015437,2]
[403031853,1769092008792,500.0,0.00015437,2]
[403031854,1769092009075,500.0,0.00015437,2]
[403031855,1769092009594,-317.24211769,0.00015438,2]
[403031856,1769092018725,-367.24701594,0.00015438,2]
[403031857,1769092021505,-300.0,0.00015438,2]
[403031858,1769092021821,300.0,0.00015437,2]
[403031859,1769092022949,-285.51971993,0.00015438,2]
[403031860,1769092024972,-182.90205909,0.00015438,2]
[403031861,1769092039594,-324.57643202,0.00015438,2]
[403031862,1769092041111,-196.80490656,0.00015438,2]
[403031863,1769092041378,400.0,0.000149,5]
[403031864,1769092042611,-346.90915073,0.00015438,2]
[403031865,1769092045331,-211.35592782,0.00015438,2]
[403031866,1769092046995,-236.39367648,0.00015438,2]
[403031867,1769092049672,-355.69797591,0.00015438,2]
[403031868,1769092051097,-290.48587819,0.00015438,2]
[403031869,1769092063641,151.0,0.00015438,2]
[403031870,1769092064771,500.0,0.00015437,2]
[403031871,1769092065039,511.51763295,0.00015437,2]
[403031872,1769092070213,-236.8865675,0.00015438,2]
[403031873,1769092070335,7037.49236705,0.00015338,2]
[403031874,1769092070366,10000.01,0.00015338,2]
[403031875,1769092070397,10000.01,0.00015338,2]
[403031876,1769092070431,10000.01,0.00015338,2]
[403031877,1769092070462,10000.01,0.00015338,2]
[403031878,1769092070492,10000.01,0.00015338,2]
[403031879,1769092071798,-217.05187497,0.00015338,2]
[403031880,1769092073835,-222.84735836,0.00015338,2]
[403031881,1769092077185,-312.35978192,0.00015338,2]
[403031882,1769092079201,-211.27492665,0.00015338,2]
[403031883,1769092081628,-240.68893856,0.00015338,2]
[403031884,1769092083165,-188.37172442,0.00015338,2]
[403031885,1769092099918,-182.4341895,0.00015,2]
[403031886,1769092101076,-365.18271742,0.00015,2]
[403031887,1769092102591,-288.33457655,0.00015,2]
[403031888,1769092102680,-6517.30140576,0.00015,2]
[403031889,1769092104885,-253.18695294,0.00015338,2]
[403031890,1769092107977,-293.9178257,0.00015338,2]
[403031891,1769092110469,-210.16363546,0.00015338,2]
[403031892,1769092114633,-237.60161812,0.00015338,2]
[403031893,1769092129661,-340.09258437,0.00015338,2]
[403031894,1769092131433,-280.27723558,0.00015338,2]
[403031895,1769092133121,-344.33935801,0.00015338,2]
[403031896,1769092135731,-254.51757795,0.00015338,2]
[403031897,1769092138252,-184.00139913,0.00015338,2]
[403031898,1769092141825,-272.09241065,0.00015338,2]
[403031899,1769092142914,-195.98,0.00015338,2]
[403031900,1769092145535,-152.63185,0.00015338,2]
[403031901,1769092147039,-275.80053399,0.00015338,2]
[403031902,1769092149147,-386.21087292,0.00015338,2]
[403031903,1769092151365,-428.19703787,0.00015338,2]
[403031904,1769092152599,184.69859424,0.00015238,2]
[403031905,1769092152624,23.82781318,0.00015238,2]
[403031906,1769092153513,-166.66,0.00015338,2]
[403031907,1769092154933,-202.97204716,0.00015338,2]
[403031908,1769092156980,-396.00748972,0.00015338,2]
[403031909,1769092159032,-209.78581975,0.00015338,2]
[403031910,1769092162127,-344.39196226,0.00015338,2]
[403031911,1769092165493,-171.73004629,0.00015338,2]
[403031912,1769092167022,-173.26668354,0.00015338,2]
[403031913,1769092170402,-295.39932112,0.00015338,2]
[403031914,1769092176150,-225.63172727,0.00015338,2]
[403031915,1769092178292,-151.41598863,0.00015338,2]
[403031916,1769092180967,-166.59763096,0.00015338,2]
[403031917,1769092182496,-250.0,0.00015338,2]
[403031918,1769092184058,-182.90599203,0.00015338,2]
[403031919,1769092186487,-500.0,0.00015338,2]
[403031920,1769092189644,-344.02638223,0.00015338,2]
[403031921,1769092192984,-249.08038838,0.00015338,2]
[403031922,1769092196775,-222.33233815,0.00015338,2]
[403031923,1769092198859,-199.02917406,0.00015338,2]
[403031924,1769092201507,1200.0,0.00015337,2]
[403031925,1769092202710,-277.66766185,0.00015338,2]
[403031926,1769092203521,278.0,0.00015338,2]
[403031927,1769092206722,-300.0,0.00015338,2]
[403031928,1769092209258,-445.55790908,0.00015338,2]
[403031929,1769092211330,-382.62857493,0.00015338,2]
[403031930,1769092215223,-300.0,0.00015338,2]
[403031931,1769092219246,-293.59584785,0.00015338,2]
[403031932,1769092221450,-302.94127204,0.00015338,2]
[403031933,1769092223988,-327.80801527,0.00015338,2]
[403031934,1769092225543,-161.30683598,0.00015338,2]
[403031935,1769092226601,368.09107262,0.00015337,2]
[403031936,1769092226645,534.29605336,0.00015337,2]
[403031937,1769092226694,500.0,0.00015337,2]
[403031938,1769092226848,368.71322826,0.00015337,2]
[403031939,1769092226950,500.0,0.00015337,2]
[403031940,1769092227143,500.0,0.00015337,2]
[403031941,1769092227265,500.0,0.00015337,2]
[403031942,1769092227660,-476.90030822,0.00015338,2]
[403031945,1769092231272,-226.60191407,0.00015338,2]
[403031951,1769092231478,-292.99923312,0.00015338,2]
[403031952,1769092231492,-2064.94711756,0.00015338,2]
[403031953,1769092231505,-1848.46471605,0.00015338,2]
[403031954,1769092231517,-1300.0,0.00015338,2]
[403031955,1769092231534,-520.77267788,0.00015338,2]
[403031956,1769092231568,-16642.01878867,0.00015338,2]
[403031977,1769092233901,-348.61826487,0.00015338,2]
[403031978,1769092235664,500.0,0.00015337,2]
[403031979,1769092235716,500.0,0.00015337,2]
[403031980,1769092235772,500.0,0.00015337,2]
[403031981,1769092235832,500.0,0.00015337,2]
[403031982,1769092235886,500.0,0.00015337,2]
[403031983,1769092235934,421.18348547,0.00015337,2]
[403031984,1769092235985,500.0,0.00015337,2]
[403031985,1769092236047,500.0,0.00015337,2]
[403031986,1769092236120,500.0,0.00015337,2]
[403031987,1769092236179,500.0,0.00015337,2]
[403031988,1769092237263,305.89834711,0.00015337,2]
[403031989,1769092237292,194.10165289,0.00015337,2]
[403031990,1769092237347,285.64900011,0.00015337,2]
[403031991,1769092237440,500.0,0.00015337,2]
[403031992,1769092237514,500.0,0.00015337,2]
[403031993,1769092237562,500.0,0.00015337,2]
[403032010,1769092237856,500.0,0.00015337,2]
[403032026,1769092237997,-407.5065346,0.00015338,2]
[403032028,1769092238009,-505.46859746,0.00015338,2]
[403032031,1769092238020,-1205.85383433,0.00015338,2]
[403032036,1769092238059,-328.31959918,0.00015338,2]
[403032043,1769092238115,-229.37692669,0.00015338,2]
[403032045,1769092238131,-964.0942,0.00015338,2]
[403032047,1769092238142,-40427.78728979,0.00015338,2]
[403032186,1769092239479,-883.15138334,0.00015338,2]
[403032193,1769092239539,-527.99994316,0.00015338,2]
[403032195,1769092239550,-3608.27472446,0.00015338,2]
[403032197,1769092239562,-2189.21569252,0.00015338,2]
[403032200,1769092239575,-13866.1066969,0.00015338,2]
[403032323,1769092240760,-1.7e-07,0.00015338,2]
[403032335,1769092240868,-127065.60977042,0.00015338,2]
[403032338,1769092240888,-2900.18651994,0.00015338,2]
[403032341,1769092240900,-242028.7626935,0.00015338,2]
[403032343,1769092240914,-380.30947352,0.00015338,2]
[403032345,1769092240930,-8943.02502495,0.00015338,2]
[403032349,1769092240954,-13368.03291928,0.00015338,2]
[403032529,1769092242540,-5541.17509426,0.00015338,2]
[403032532,1769092242552,-1520.0,0.00015338,2]
[403032542,1769092242641,-3210.0,0.00015338,2]
[403032549,1769092242699,-70391.56412352,0.00015338,2]
[403032552,1769092242710,-1844.40697459,0.00015338,2]
[403032554,1769092242723,-9827.6677567,0.00015338,2]
[403032559,1769092242757,-1295.82455064,0.00015338,2]
[403032582,1769092242957,-9839.44776782,0.00015338,2]
[403032584,1769092242978,-1736.38803983,0.00015338,2]
[403032767,1769092245425,-724.619994,0.00015338,2]
[403032768,1769092245437,-792.738,0.00015338,2]
[403032770,1769092245483,-5712.99188177,0.00015338,2]
[403032771,1769092245495,-352.65000006,0.00015338,2]
[403032772,1769092245544,-2328.0458271,0.00015338,2]
[403032773,1769092245555,-1326.69248257,0.00015338,2]
[403032774,1769092245605,-2079.50002,0.00015338,2]
[403032775,1769092245778,-5595.23055072,0.00015338,2]
[403032776,1769092245789,-651.4799978,0.00015338,2]
[403032781,1769092264598,-192.72668879,0.00015338,2]
[403032782,1769092266007,-307.0706343,0.00015338,2]
[403032783,1769092266713,205.39256469,0.00015338,2]
[403032784,1769092266750,629.9009953,0.00015338,2]
[403032785,1769092266957,1353.83351811,0.00015338,2]
[403032786,1769092274554,151.0,0.00015335,2]
[403032787,1769092321377,300.0,0.00015337,2]
[403032788,1769092325979,546.67038325,0.00015337,2]
[403032789,1769092332989,151.0,0.00015335,2]
[403032790,1769092336501,617.8111,0.00015238,2]
[403032791,1769092337288,-321397.48779771,0.00015338,2]
[403032792,1769092337315,-1056.8328,0.00015338,2]
[403032793,1769092337342,-500.0,0.00015437,2]
[403032794,1769092337368,-500.0,0.00015437,2]
[403032795,1769092337396,-502.31698719,0.00015437,2]
[403032796,1769092337426,-500.0,0.00015437,2]
[403032797,1769092337455,-500.0,0.00015437,2]
[403032798,1769092337483,-420.26143648,0.00015437,2]
[403032799,1769092337514,-500.0,0.00015437,2]
[403032800,1769092337542,-500.0,0.00015437,2]
[403032801,1769092337571,-507.31602648,0.00015437,2]
[403032802,1769092337673,-500.0,0.00015437,2]
[403032803,1769092337702,-500.0,0.00015437,2]
[403032804,1769092337731,-464.89254697,0.00015437,2]
[403032805,1769092337759,-500.0,0.00015637,2]
[403032806,1769092337786,-500.0,0.00015637,2]
[403032807,1769092337816,-341.24,0.00015637,2]
[403032808,1769092337847,-500.0,0.00015637,2]
[403032809,1769092337875,-500.0,0.00015637,2]
[403032810,1769092337902,-263.5228146,0.000159,2]
[403032811,1769092337929,-341.24,0.00015911,2]
[403032812,1769092337956,-151.0,0.00016052,2]
[403032813,1769092337984,-151.0,0.00016057,2]
[403032814,1769092338012,-151.0,0.0001606,2]
[403032815,1769092338044,-3210.0,0.00016121,2]
[403032816,1769092338073,-341.24,0.00016185,2]
[403032817,1769092338103,-5780.66298686,0.000162,5]
[403032818,1769092338134,-695.44087706,0.000164,2]
[403032819,1769092338168,-1226.84014038,0.000164,2]
[403032820,1769092338196,-1835.27947751,0.000164,2]
[403032821,1769092338226,-341.24,0.00016459,2]
[403032822,1769092338254,-4090.11880728,0.000165,2]
[403032823,1769092338281,-200.0,0.00016543,2]
[403032824,1769092338308,-500.0,0.00016599,2]
[403032825,1769092338334,-36274.25,0.000166,2]
[403032826,1769092338360,-150.99,0.000166,2]
[403032827,1769092338386,-555.87594665,0.000166,2]
[403032828,1769092338414,-200.0,0.00016721,2]
[403032829,1769092338443,-341.25,0.00016733,2]
[403032830,1769092338471,-420.0,0.0001678,2]
[403032831,1769092338500,-1680.0,0.00016865,2]
[403032832,1769092338528,-250.0,0.00016872,2]
[403032833,1769092338556,-600.0,0.00016872,2]
[403032834,1769092338584,-1558.74728863,0.00016872,2]
[403032835,1769092338611,-300.0,0.00016872,2]
[403032836,1769092338640,-195.0,0.00016872,2]
[403032837,1769092338669,-359.98096521,0.00017466,2]
[403032838,1769092338701,-500.0,0.00017466,2]
[403032839,1769092338731,-500.0,0.00017471,2]
[403032840,1769092338762,-500.0,0.00017471,2]
[403032841,1769092338791,-500.0,0.00017471,2]
[403032842,1769092338820,-500.0,0.00017471,2]
[403032843,1769092338850,-500.0,0.00017471,2]
[403032844,1769092338881,-500.0,0.00017471,2]
[403032845,1769092338911,-500.0,0.00017471,2]
[403032846,1769092338941,-500.0,0.00017471,2]
[403032847,1769092338970,-500.0,0.00017471,2]
[403032848,1769092339003,-500.0,0.00017471,2]
[403032849,1769092339033,-500.0,0.00017471,2]
[403032850,1769092339064,-500.0,0.00017471,2]
[403032851,1769092339094,-500.0,0.00017471,2]
[403032852,1769092339123,-500.0,0.00017471,2]
[403032853,1769092339150,-447.62457317,0.00017471,2]
[403032854,1769092339181,-714.0,0.00017512,2]
[403032855,1769092339209,-154.28,0.00017549,2]
[403032856,1769092339236,-995.07189904,0.00017555,2]
[403032857,1769092339268,-714.0,0.00017569,2]
[403032858,1769092339299,-800.0,0.000176,6]
[403032859,1769092339328,-154.28,0.00017608,2]
[403032860,1769092339358,-154.28,0.00017666,2]
[403032861,1769092339385,-503.71984684,0.00017673,2]
[403032862,1769092339414,-500.0,0.00017673,2]
[403032863,1769092339442,-500.0,0.00017673,2]
[403032864,1769092339469,-500.0,0.00017673,2]
[403032865,1769092339504,-500.0,0.00017673,2]
[403032866,1769092339532,-500.0,0.00017673,2]
[403032867,1769092339561,-500.0,0.00017673,2]
[403032868,1769092339587,-500.0,0.00017673,2]
[403032869,1769092339614,-500.0,0.00017673,2]
[403032870,1769092339645,-714.0,0.00017696,2]
[403032871,1769092339674,-1200.0,0.000177,6]
[403032872,1769092339703,-154.28,0.00017725,2]
[403032873,1769092339733,-154.28,0.00017783,2]
[403032874,1769092339765,-1600.0,0.000178,6]
[403032875,1769092339795,-154.28,0.00017842,2]
[403032876,1769092339825,-2000.0,0.000179,6]
[403032877,1769092339853,-268.07966271,0.000179,2]
[403032878,1769092339881,-412.99139697,0.000179,2]
[403032879,1769092339908,-742.81099665,0.000179,2]
[403032880,1769092339934,-439.88445026,0.000179,2]
[403032881,1769092339960,-6575.92696652,0.000179,2]
[403032882,1769092339987,-3677.54665016,0.000179,2]
[403032883,1769092340016,-154.28,0.000179,2]
[403032884,1769092340045,-154.28,0.00017959,2]
[403032885,1769092340074,-287.39709524,0.0001799,2]
[403032886,1769092340103,-287.39709524,0.0001799,2]
[403032887,1769092340135,-500.0,0.00017999,2]
[403032888,1769092340165,-311530.28246819,0.00018,2]
[403032889,1769092354806,-500.0,0.00015337,2]
[403032890,1769092354842,-528.29953973,0.00015337,2]
[403032891,1769092355006,7943.41092054,0.00015238,2]
[403032892,1769092355218,-423.47885594,0.00015238,2]
[403032893,1769092358180,-321.70298352,0.00015238,2]
[403032894,1769092358427,-2838.12910714,0.00015238,2]
[403032895,1769092359893,-232.63347368,0.00015238,2]
[403032896,1769092360750,-10000.01,0.00015238,2]
[403032897,1769092360872,-10000.01,0.00015238,2]
[403032898,1769092361040,-10000.01,0.00015238,2]
[403032899,1769092361179,-10000.01,0.00015238,2]
[403032900,1769092361362,-787.54710019,0.00015238,2]
[403032901,1769092363825,-10000.01,0.00015238,2]
[403032902,1769092364460,-200.15428726,0.00015238,2]
[403032903,1769092365967,-169.88456738,0.00015238,2]
[403032904,1769092367423,-272.43662925,0.00015238,2]
[403032905,1769092368940,-279.73508568,0.00015238,2]
[403032906,1769092371011,-191.61455368,0.00015238,2]
[403032907,1769092372961,-212.27077216,0.00015238,2]
[403032908,1769092374567,-300.39310472,0.00015238,2]
[403032909,1769092376726,-253.16067858,0.00015238,2]
[403032910,1769092381805,-160.21303988,0.00015238,2]
[403032911,1769092383901,-221.84434696,0.00015237,2]
[403032912,1769092394176,-170.67193967,0.00015138,2]
[403032913,1769092396247,-158.32296483,0.00015138,2]
[403032914,1769092399282,-179.11384868,0.00015138,2]
[403032915,1769092400846,-220.75764123,0.00015137,2]
[403032916,1769092404715,-184.87678679,0.00015137,2]
[403032917,1769092406640,-254.84613125,0.00015137,2]
[403032918,1769092408063,-368.06536666,0.00015137,2]
[403032919,1769092410178,-171.45407407,0.00015137,2]
[403032920,1769092410203,-134.7547087,0.00015138,2]
[403032921,1769092412610,-370.527934,0.00015138,2]
[403032926,1769092415207,-176.30234567,0.00015138,2]
[403032927,1769092417165,-164.736033,0.00015138,2]
[403032928,1769092419307,-302.19129105,0.00015138,2]
[403032929,1769092421102,-174.51467004,0.00015138,2]
[403032930,1769092422506,-233.13295432,0.00015138,2]
[403032931,1769092425772,-154.97974583,0.00015138,2]
[403032932,1769092428320,-196.76014019,0.00015138,2]
[403032933,1769092432686,-211.16229621,0.00015138,2]
[403032934,1769092434907,-152.59314192,0.00015138,2]
[403032935,1769092436733,-449.68701886,0.00015138,2]
[403032936,1769092439221,-1129.58360985,0.00015138,2]
[403032937,1769092440245,-209.21893678,0.00015138,2]
[403032938,1769092444611,-233.6890208,0.00015138,2]
[403032939,1769092447275,-200.22499774,0.00015138,2]
[403032940,1769092449919,-175.39869777,0.00015138,2]
[403032941,1769092450796,712.74,0.00018,30]
[403032942,1769092453007,-288.12481299,0.00015138,2]
[403032943,1769092454565,-188.41388948,0.00015138,2]
[403032944,1769092455983,-295.86608011,0.00015138,2]
[403032945,1769092457463,-304.80074815,0.00015138,2]
[403032946,1769092461244,-430.10190951,0.00015138,2]
[403032947,1769092462733,-591.69802199,0.00015138,2]
[403032948,1769092464182,-500.0,0.00015138,2]
[403032949,1769092466223,-300.0,0.00015138,2]
[403032950,1769092469929,-259.33409053,0.00015138,2]
[403032951,1769092472002,-553.61472247,0.00015138,2]
[403032952,1769092474612,-290.92210688,0.00015138,2]
[403032953,1769092477234,-390.66590947,0.00015138,2]
[403032954,1769092478647,-395.92321083,0.00015138,2]
[403032955,1769092480760,-300.0,0.00015138,2]
[403032956,1769092482910,-300.0,0.00015138,2]
[403032957,1769092484464,-209.20770058,0.00015138,2]
[403032958,1769092485991,-337.06724731,0.00015138,2]
[403032959,1769092489319,-277.86097792,0.00015138,2]
[403032960,1769092493429,534.56,0.000226,120]
[403032961,1769092493664,-305.37336821,0.00015138,2]
[403032962,1769092496336,-390.66590947,0.00015138,2]
[403032963,1769092497790,-202.58890261,0.00015138,2]
[403032964,1769092499188,-294.29083844,0.00015138,2]
[403032965,1769092500635,-293.69562351,0.00015138,2]
[403032966,1769092502133,-175.19791443,0.00015137,2]
[403032967,1769092504239,-124.80208557,0.00015137,2]
[403032968,1769092504271,-86.36021064,0.00015137,2]
[403032969,1769092505772,-221.5918402,0.00015137,2]
[403032970,1769092509777,-196.42290902,0.00015137,2]
[403032971,1769092512106,-300.0,0.00015137,2]
[403032972,1769092513762,-231.78535653,0.00015137,2]
[403032973,1769092515286,-163.83968361,0.00015137,2]
[403032974,1769092515310,-150.89634939,0.00015138,2]
[403032975,1769092517425,-335.52109047,0.00015138,2]
[403032976,1769092518139,400.92,0.00018,30]
[403032977,1769092519477,-245.70075882,0.00015138,2]
[403032978,1769092521625,-330.14659575,0.00015138,2]
[403032979,1769092523118,-170.11123983,0.00015138,2]
[403032980,1769092530754,-173.87026014,0.00015138,2]
[403032981,1769092532780,-10000.01,0.00015138,2]
[403032982,1769092536317,-280.40948795,0.00015138,2]
[403032983,1769092537853,-237.24894011,0.00015138,2]
[403032984,1769092539009,-10000.01,0.00015138,2]
[403032985,1769092542557,1202.0,0.00014837,2]
[403032986,1769092544037,-152.90282489,0.00015138,2]
[403032987,1769092546174,-116.16699822,0.00015138,2]
[403032988,1769092546209,-177.41637602,0.00015138,2]
[403032989,1769092547559,-151.21241997,0.00015138,2]
[403032990,1769092550720,-159.99371674,0.00015138,2]
[403032991,1769092552545,-287.27718627,0.00015138,2]
[403032992,1769092555154,-215.19509579,0.00015138,2]
[403032993,1769092557542,-173.12212116,0.00015138,2]
[403032994,1769092560340,-254.29924118,0.00015138,2]
[403032995,1769092562043,-351.41731232,0.00015138,2]
[403032996,1769092563329,-254.59051205,0.00015137,2]
[403032997,1769092566446,-45.40948795,0.00015137,2]
[403032998,1769092566471,-149.59051205,0.00015138,2]
[403032999,1769092579903,-156.64576147,0.00015138,2]
[403033000,1769092581349,-271.48140746,0.00015138,2]
[403033001,1769092583688,-300.0,0.00015138,2]
[403033002,1769092585110,-616.5,0.00015138,2]
[403033003,1769092587231,-583.5,0.00015138,2]
[403033004,1769092591173,-165.28823813,0.00015138,2]
[403033005,1769092593540,-155.03186655,0.00015138,2]
[403033006,1769092598524,-310.54156861,0.00015138,2]
[403033007,1769092600367,-285.0,0.00015138,2]
[403033008,1769092602529,-173.73524533,0.00015138,2]
[403033009,1769092605721,-417.16755992,0.00015138,2]
[403033010,1769092608298,-289.46022887,0.00015138,2]
[403033011,1769092611424,-268.11633088,0.00015138,2]
[403033012,1769092613395,-166.02656855,0.00015138,2]
[403033013,1769092615502,-167.86917764,0.00015138,2]
[403033014,1769092616975,-200.0,0.00015138,2]
[403033015,1769092619122,-392.40814424,0.00015138,2]
[403033016,1769092621050,-10000.01,0.00015138,2]
[403033017,1769092622224,-302.0,0.00015138,2]
[403033018,1769092623672,-190.58851501,0.00015138,2]
[403033019,1769092625678,-313.91034674,0.00015138,2]
[403033020,1769092627010,-1844.90552726,0.00015138,2]
[403033021,1769092627043,-151.0,0.00015235,2]
[403033022,1769092627077,-300.0,0.00015237,2]
[403033023,1769092629305,-159.57822226,0.00015238,2]